fUSD/lending_fUSD_20240327
["ID","MTS","AMOUNT","RATE_DAILY","PERIOD"]
[320737587,1711539164962,-852.718661,0.00056712,120]
[320737588,1711539164973,-1803.38,0.00056986,120]
[320737589,1711539164983,-2528.02,0.00056986,120]
[320737590,1711539165041,-752.78,0.00056986,120]
[320737591,1711539165052,-9373.0,0.00056986,120]
[320737592,1711539165062,-2230.4,0.0005726,120]
[320737593,1711539165071,-1803.38,0.0005726,120]
[320737594,1711539165081,-2528.02,0.0005726,120]
[320737595,1711539165092,-752.78,0.0005726,120]
[320737596,1711539165102,-9373.0,0.0005726,120]
[320737597,1711539165112,-2230.4,0.00057534,120]
[320737598,1711539165122,-1803.38,0.00057534,120]
[320737599,1711539165132,-2528.02,0.00057534,120]
[320737600,1711539165142,-752.78,0.00057534,120]
[320737601,1711539165151,-9373.0,0.00057534,120]
[320737602,1711539165160,-2230.4,0.00057808,120]
[320737603,1711539165169,-1803.38,0.00057808,120]
[320737604,1711539165179,-2528.02,0.00057808,120]
[320737605,1711539165188,-752.78,0.00057808,120]
[320737606,1711539165197,-9373.0,0.00057808,120]
[320737607,1711539165207,-2230.4,0.00058082,120]
[320737608,1711539165216,-1803.38,0.00058082,120]
[320737609,1711539165225,-2528.02,0.00058082,120]
[320737610,1711539165234,-752.78,0.00058082,120]
[320737611,1711539165243,-9373.0,0.00058082,120]
[320737612,1711539165252,-2230.4,0.00058356,120]
[320737613,1711539165261,-1803.38,0.00058356,120]
[320737614,1711539165276,-2528.02,0.00058356,120]
[320737615,1711539165285,-752.78,0.00058356,120]
[320737616,1711539165294,-2230.4,0.0005863,120]
[320737617,1711539165303,-1803.38,0.0005863,120]
[320737618,1711539165313,-2528.02,0.0005863,120]
[320737619,1711539165323,-752.78,0.0005863,120]
[320737620,1711539165333,-2230.4,0.00058904,120]
[320737621,1711539165342,-1803.38,0.00058904,120]
[320737622,1711539165353,-2528.02,0.00058904,120]
[320737623,1711539165364,-752.78,0.00058904,120]
[320737624,1711539165374,-2230.4,0.00059178,120]
[320737625,1711539165384,-1803.38,0.00059178,120]
[320737626,1711539165395,-2528.02,0.00059178,120]
[320737627,1711539165404,-752.78,0.00059178,120]
[320737628,1711539165414,-2230.4,0.00059452,120]
[320737629,1711539165424,-2528.02,0.00059452,120]
[320737630,1711539165434,-1803.38,0.00059452,120]
[320737631,1711539165443,-752.78,0.00059452,120]
[320737632,1711539165453,-1067.48043081,0.00059726,120]
[320737633,1711539165470,-658.89567688,0.00059726,120]
[320737634,1711539165483,-504.02389231,0.00059726,120]
[320737635,1711539165493,-1803.38,0.00059726,120]
[320737636,1711539165502,-752.78,0.00059726,120]
[320737637,1711539165511,-2528.02,0.00059726,120]
[320737638,1711539165523,-601.74565987,0.00059999,120]
[320737639,1711539165533,-2230.4,0.00059999,120]
[320737640,1711539165542,-1803.38,0.00059999,120]
[320737641,1711539165552,-752.78,0.00059999,120]
[320737642,1711539165561,-1607.26723322,0.00060273,120]
[320737643,1711539165913,-315.59172854,0.00044257,2]
[320737644,1711539165925,-655.19974353,0.00044257,2]
[320737645,1711539165956,-250.47461984,0.00044257,2]
[320737646,1711539165978,-1395.74548652,0.00044257,2]
[320737647,1711539166003,-3815.03874999,0.00044257,2]
[320737648,1711539166017,-1875.15891739,0.00044257,2]
[320737649,1711539166026,-150.0,0.00049598,7]
[320737650,1711539166035,-150.0,0.00049599,7]
[320737651,1711539166044,-150.0,0.00049635,7]
[320737652,1711539166053,-150.0,0.00049659,7]
[320737653,1711539166063,-150.0,0.0004968,7]
[320737654,1711539166072,-150.0,0.00049717,7]
[320737655,1711539166082,-150.0,0.00049728,7]
[320737656,1711539166091,-150.0,0.00049755,7]
[320737657,1711539166101,-150.0,0.00049772,7]
[320737658,1711539166111,-150.0,0.00049774,7]
[320737659,1711539166120,-499.99,0.00049782,2]
[320737660,1711539166130,-150.0,0.00049786,7]
[320737661,1711539166139,-150.0,0.00049795,7]
[320737662,1711539166148,-150.0,0.00049804,7]
[320737663,1711539166158,-150.0,0.00049826,7]
[320737664,1711539166167,-150.0,0.00049846,7]
[320737665,1711539166177,-150.0,0.00049888,7]
[320737666,1711539166186,-150.0,0.00050086,7]
[320737667,1711539166195,-150.0,0.00050143,7]
[320737668,1711539166205,-150.0,0.00050192,7]
[320737669,1711539166214,-150.0,0.00050237,7]
[320737670,1711539166224,-150.0,0.00050269,7]
[320737671,1711539166234,-150.0,0.00050276,7]
[320737672,1711539166243,-150.0,0.00050291,7]
[320737673,1711539166253,-150.0,0.0005039,7]
[320737674,1711539166261,-150.0,0.00050468,7]
[320737675,1711539166272,-150.0,0.00050703,7]
[320737676,1711539166286,-150.0,0.00051278,7]
[320737677,1711539166294,-150.0,0.00051278,7]
[320737678,1711539166303,-150.0,0.00051441,7]
[320737679,1711539166312,-150.0,0.00051479,7]
[320737680,1711539166323,-150.0,0.0005161,7]
[320737681,1711539166334,-150.0,0.00051656,7]
[320737682,1711539166344,-150.0,0.00051696,7]
[320737683,1711539166355,-150.0,0.00051702,7]
[320737684,1711539166365,-150.0,0.00052337,7]
[320737685,1711539166375,-13873.04993667,0.00053183,2]
[320737686,1711539166385,-663.25,0.00054794,120]
[320737687,1711539166395,-885.32,0.00055616,120]
[320737688,1711539166404,-885.32,0.0005589,120]
[320737689,1711539166414,-852.718661,0.00056164,120]
[320737690,1711539166423,-885.32,0.00056164,120]
[320737691,1711539166433,-885.32,0.00056438,120]
[320737692,1711539166442,-852.718654,0.00056712,120]
[320737693,1711539166452,-885.32,0.00056712,120]
[320737694,1711539166462,-9075.62196094,0.00058356,120]
[320737695,1711539166505,-150.0,0.00049635,7]
[320737696,1711539166516,-150.0,0.00050476,7]
[320737697,1711539166525,-263.0,0.00051901,2]
[320737698,1711539166535,-129.99734915,0.00058356,120]
[320737699,1711539166558,-167.38068991,0.00058356,120]
[320737700,1711539166567,-604.97865514,0.00059999,120]
[320737701,1711539166579,-953.345895,0.00059999,120]
[320737702,1711539166590,-321.8334085,0.00059999,120]
[320737703,1711539174182,150.0,0.00040578,30]
[320737704,1711539174243,250.0,0.00040578,30]
[320737705,1711539395464,150.0,0.00040728,30]
[320737706,1711539395787,250.0,0.00040728,30]
[320737708,1711539696048,150.0,0.00041414,30]
[320737709,1711539696425,250.0,0.00041414,30]
[320737712,1711539996876,150.0,0.00041413,30]
[320737713,1711539997849,250.0,0.00041413,30]
[320737714,1711540036115,-325.44996838,0.00026987,2]
[320737715,1711540036136,-166.79766437,0.00026988,2]
[320737716,1711540039125,-32.22453899,0.00026988,2]
[320737717,1711540039146,-250.0,0.00027,3]
[320737718,1711540039167,-300.0,0.00029,3]
[320737719,1711540039188,-350.0,0.00031,3]
[320737720,1711540039209,-359.80617081,0.000329,2]
[320737721,1711540050096,-1728.3318721,0.000329,2]
[320737722,1711540074512,-838.91195709,0.000329,2]
[320737723,1711540074535,-400.0,0.00033,3]
[320737724,1711540074560,-154.15648768,0.000349,2]
[320737725,1711540074582,-606.93155523,0.000349,2]
[320737726,1711540075509,-55.82454477,0.000349,2]
[320737727,1711540075532,-450.0,0.00035,3]
[320737728,1711540075558,-154.15648768,0.000359,2]
[320737729,1711540075580,-499.99,0.000359,2]
[320737730,1711540075605,-840.02896755,0.0003677,4]
[320737731,1711540075947,-47.75103245,0.0003677,4]
[320737732,1711540075970,-150.0,0.00036771,3]
[320737733,1711540075992,-150.0,0.00036771,3]
[320737734,1711540076015,-300.0,0.00036771,3]
[320737735,1711540076036,-1352.24896755,0.00036872,2]
[320737736,1711540076318,-2000.0,0.00036872,2]
[320737737,1711540076682,-2000.0,0.00036872,2]
[320737738,1711540077084,-2000.0,0.00036872,2]
[320737739,1711540077715,-2000.0,0.00036872,2]
[320737740,1711540078408,-1422.79103245,0.00036872,2]
[320737741,1711540119302,577.20896755,0.000328,2]
[320737742,1711540141632,-1134.38913245,0.000328,2]
[320737743,1711540141657,-965.61086755,0.00036872,2]
[320737744,1711540145131,-2000.0,0.00036872,2]
[320737772,1711540232258,-256.269,0.00034724,2]
[320737775,1711540232271,-1295.91024,0.00034724,2]
[320737777,1711540232281,-7410.70247959,0.00034899,4]
[320737779,1711540232291,-21718.6348,0.000349,2]
[320737781,1711540232301,-587.33457509,0.00035765,4]
[320737783,1711540232310,-546.1351055,0.00035766,4]
[320737785,1711540232322,-221.14172414,0.00036688,5]
[320737787,1711540232331,-2753.67069142,0.00036872,2]
[320737789,1711540232341,-1967.53642962,0.00036872,4]
[320737791,1711540232351,-500.0,0.00037,3]
[320737793,1711540232361,-1000.0,0.00038998,2]
[320737795,1711540232371,-550.0,0.00039,3]
[320737797,1711540232381,-150.0,0.00040568,5]
[320737799,1711540232390,-7722.27451607,0.00040569,2]
[320737800,1711540232400,-204.74111127,0.00040579,4]
[320737802,1711540232409,-322.07704381,0.00040579,4]
[320737804,1711540232419,-600.0,0.00041,3]
[320737806,1711540232428,-254.53,0.00042858,2]
[320737808,1711540232438,-650.0,0.00043,3]
[320737810,1711540232447,-330.06974,0.00043205,4]
[320737812,1711540232456,-250.0,0.00044313,110]
[320737814,1711540232466,-1500.0,0.00044325,120]
[320737817,1711540232476,-1000.0,0.00044499,2]
[320737818,1711540232485,-200.0,0.00044518,2]
[320737821,1711540232494,-1598.72,0.00044527,120]
[320737823,1711540232505,-1000.0,0.00044555,120]
[320737825,1711540232514,-1009.5,0.00044558,120]
[320737826,1711540232524,-210.0,0.00044625,5]
[320737827,1711540232533,-174.14,0.00044974,2]
[320737828,1711540232543,-700.0,0.00045,3]
[320737829,1711540232553,-168.6,0.00045053,2]
[320737830,1711540232562,-254.53,0.00045121,2]
[320737831,1711540232571,-4580.77104821,0.00045394,2]
[320737832,1711540232580,-573.06,0.00045423,2]
[320737833,1711540232591,-166.37,0.00045494,2]
[320737834,1711540232602,-250.0,0.00045513,120]
[320737835,1711540232611,-254.5727,0.000459,2]
[320737836,1711540232623,-208.7271,0.000459,2]
[320737837,1711540232633,-6848.917,0.000459,2]
[320737838,1711540232644,-9839.89085176,0.00046,2]
[320737839,1711540232653,-150.0,0.00046354,2]
[320737840,1711540232663,-327.83,0.00046374,15]
[320737841,1711540232672,-250.0,0.00046374,2]
[320737842,1711540232683,-244.71,0.00046681,2]
[320737843,1711540232692,-1375.12,0.00046767,120]
[320737844,1711540232703,-286.07,0.00046786,2]
[320737845,1711540232712,-500.0,0.00046936,2]
[320737846,1711540232721,-2469.4913,0.00046939,2]
[320737847,1711540232730,-172.53,0.00046942,120]
[320737848,1711540232740,-750.0,0.00047,3]
[320737849,1711540232749,-440.25156068,0.00047037,4]
[320737850,1711540232758,-471.55107602,0.00047037,4]
[320737851,1711540232768,-155.1304162,0.00047037,4]
[320737852,1711540232778,-1000.0,0.00047038,2]
[320737853,1711540232788,-400.0,0.00047039,120]
[320737854,1711540232798,-23900.0,0.00047039,2]
[320737855,1711540232808,-254.53,0.00047385,2]
[320737856,1711540232818,-539.73,0.00047811,2]
[320737857,1711540232828,-539.73,0.00047943,2]
[320737858,1711540232837,-539.73,0.00048074,2]
[320737859,1711540232848,-539.73,0.00048205,2]
[320737860,1711540232857,-539.73,0.00048336,2]
[320737861,1711540232867,-539.73,0.00048467,2]
[320737862,1711540232876,-156.14444327,0.00048524,30]
[320737863,1711540232885,-539.73,0.00048598,2]
[320737864,1711540232896,-539.73,0.00048729,2]
[320737865,1711540232905,-709.36350887,0.00048798,10]
[320737866,1711540232915,-539.73,0.0004886,2]
[320737867,1711540232924,-539.73,0.00048991,2]
[320737868,1711540232934,-800.0,0.00049,3]
[320737869,1711540232943,-327.83,0.00049114,15]
[320737870,1711540232952,-539.73,0.00049123,2]
[320737871,1711540232961,-539.73,0.00049254,2]
[320737872,1711540232971,-155.0,0.00049312,4]
[320737873,1711540232979,-539.73,0.00049385,2]
[320737874,1711540232989,-539.73,0.00049516,2]
[320737875,1711540232998,-286.07,0.00049526,2]
[320737876,1711540233007,-539.73,0.00049647,2]
[320737877,1711540233017,-254.53,0.00049649,2]
[320737878,1711540233026,-159.12745486,0.00049664,30]
[320737879,1711540233036,-172.53,0.00049682,120]
[320737880,1711540233045,-539.73,0.00049778,2]
[320737881,1711540233054,-198.88165296,0.00049898,4]
[320737882,1711540233064,-5510.7585,0.00049899,2]
[320737884,1711540233073,-539.73,0.00049909,2]
[320737885,1711540233082,-4580.77104819,0.00049993,2]
[320737886,1711540233092,-5000.0,0.0005,30]
[320737887,1711540233102,-163.60210771,0.00050025,60]
[320737888,1711540233113,-539.73,0.0005004,2]
[320737889,1711540233124,-1000.0,0.00050062,120]
[320737890,1711540233133,-163.57700478,0.00050119,60]
[320737891,1711540233144,-159.12745486,0.0005013,60]
[320737892,1711540233154,-3278.17,0.00050137,120]
[320737893,1711540233163,-539.73,0.00050172,2]
[320737894,1711540233173,-159.12745486,0.00050278,60]
[320737895,1711540233183,-539.73,0.00050303,2]
[320737896,1711540233192,-2000.0,0.00050684,120]
[320737897,1711540233202,-1251.01786026,0.00050684,120]
[320737898,1711540233216,-748.98213974,0.00050684,120]
[320737899,1711540233225,-2000.0,0.00050684,120]
[320737900,1711540233235,-2000.0,0.00050684,120]
[320737901,1711540233245,-2000.0,0.00050684,120]
[320737902,1711540233255,-2000.0,0.00050684,120]
[320737903,1711540233265,-2000.0,0.00050684,120]
[320737904,1711540233275,-2000.0,0.00050684,120]
[320737905,1711540233285,-2000.0,0.00050684,120]
[320737906,1711540233296,-2000.0,0.00050684,120]
[320737907,1711540233305,-2000.0,0.00050684,120]
[320737908,1711540233315,-549.09,0.00050684,120]
[320737909,1711540233324,-159.12745486,0.00051329,60]
[320737910,1711540233334,-218.58736696,0.00051397,4]
[320737911,1711540233343,-327.83,0.00051853,120]
[320737912,1711540233353,-254.53,0.00051913,2]
[320737913,1711540233363,-155.0000007,0.00051998,4]
[320737914,1711540233372,-548.84635004,0.00051999,4]
[320737915,1711540233382,-1000.0,0.00052,120]
[320737916,1711540233393,-500.0,0.00052054,60]
[320737917,1711540233403,-637.0990244,0.00052262,4]
[320737918,1711540233413,-730.35714708,0.00052263,4]
[320737919,1711540233424,-286.07,0.00052265,2]
[320737920,1711540233434,-1816.84,0.00052363,120]
[320737921,1711540233444,-500.0,0.00052602,60]
[320737922,1711540233455,-80.13961801,0.00052919,120]
[320737923,1711540233508,-319.86038199,0.00052919,120]
[320737924,1711540233518,-263.47322908,0.0005315,60]
[320737925,1711540233536,-236.52677092,0.0005315,60]
[320737926,1711540233546,-1816.84,0.00053185,120]
[320737927,1711540233556,-5007.94729687,0.00053333,2]
[320737928,1711540233566,-159.12745486,0.00053475,60]
[320737929,1711540233575,-500.0,0.00053698,60]
[320737930,1711540233586,-386.60453288,0.0005375,30]
[320737931,1711540233597,-150.0,0.00053907,2]
[320737932,1711540233607,-246.938,0.00053907,120]
[320737933,1711540233617,-1176.0,0.00053907,120]
[320737934,1711540233630,-1816.84,0.00054007,120]
[320737935,1711540233640,-254.53,0.00054177,2]
[320737936,1711540233651,-159.12745486,0.00054188,60]
[320737937,1711540233662,-500.0,0.00054246,60]
[320737938,1711540233672,-156.90115205,0.00054423,60]
[320737939,1711540233682,-214.51255364,0.00054437,26]
[320737940,1711540233691,-480.2882,0.00054591,2]
[320737941,1711540233702,-2494.2719101,0.00054591,2]
[320737942,1711540233719,-5.7280899,0.00054591,2]
[320737943,1711540233729,-205.27868726,0.00054592,2]
[320737944,1711540233739,-161.50810259,0.00054592,14]
[320737945,1711540233749,-71.20776028,0.00054592,2]
[320737947,1711540238537,-1543.6848566,0.00054592,2]
[320737948,1711540238547,-215.94757888,0.00054592,120]
[320737949,1711540238557,-4580.77104819,0.00054592,120]
[320737950,1711540238566,-327.83,0.00054593,120]
[320737951,1711540238576,-215.94757878,0.00054669,120]
[320737952,1711540238585,-196.08699539,0.00054681,2]
[320737953,1711540238598,-154.32,0.00054681,120]
[320737954,1711540238607,-154.32,0.00054681,120]
[320737955,1711540238617,-154.32,0.00054681,120]
[320737956,1711540238627,-154.32,0.00054681,120]
[320737957,1711540238637,-154.32,0.00054681,120]
[320737958,1711540238647,-154.32,0.00054681,120]
[320737959,1711540238660,-154.32,0.00054681,120]
[320737960,1711540238670,-154.32,0.00054681,120]
[320737961,1711540238681,-154.32,0.00054681,120]
[320737962,1711540238691,-154.32,0.00054681,120]
[320737963,1711540238700,-154.32,0.00054682,120]
[320737964,1711540238709,-154.32,0.00054682,120]
[320737965,1711540238719,-431.07263626,0.0005469,120]
[320737966,1711540238729,-201599.81930596,0.00054691,4]
[320737967,1711540238742,-5339.51190545,0.00054691,4]
[320737968,1711540238756,-2813.46365232,0.00054691,4]
[320737969,1711540238770,-19111.87607385,0.00054691,4]
[320737970,1711540238783,-2861.18954825,0.00054691,4]
[320737971,1711540238795,-815137.42044166,0.00054691,4]
[320737972,1711540238805,-69531.83930195,0.00054692,2]
[320737973,1711540238822,-1224.13043368,0.00054692,2]
[320737974,1711540238833,-174244.03026437,0.00054692,2]
[320737975,1711540238843,-5000.0,0.00054694,3]
[320737976,1711540238853,-263.93101583,0.00054742,4]
[320737977,1711540238862,-215.94757878,0.00054747,120]
[320737978,1711540238872,-437.90281178,0.00054765,4]
[320737979,1711540238923,-154.32,0.00054781,120]
[320737980,1711540238934,-196.08699539,0.00054784,2]
[320737981,1711540238944,-154.32,0.00054784,120]
[320737982,1711540238954,-154.32,0.00054784,120]
[320737983,1711540238964,-154.32,0.00054784,120]
[320737984,1711540238974,-3739.00676453,0.0005479,4]
[320737985,1711540238984,-261.40065122,0.00054791,4]
[320737986,1711540238995,-698.92991944,0.00054791,4]
[320737987,1711540239016,-2585.14889446,0.00054791,4]
[320737988,1711540239026,-155.0,0.00054791,4]
[320737989,1711540239037,-155.28685602,0.00054791,4]
[320737990,1711540239048,-1111.0,0.00054791,4]
[320737991,1711540239058,-203.27006252,0.00054791,4]
[320737992,1711540239068,-212.39660578,0.00054791,4]
[320737993,1711540239078,-7228.80117159,0.00054791,4]
[320737994,1711540239089,-155.0,0.00054791,4]
[320737995,1711540239100,-172.33117143,0.00054791,4]
[320737996,1711540239110,-2380.31263988,0.00054791,4]
[320737997,1711540239121,-3062.99632509,0.00054791,4]
[320737998,1711540239132,-325.0470602,0.00054791,4]
[320737999,1711540239142,-1649.95566402,0.00054791,4]
[320738000,1711540239158,-360.35892677,0.00054791,4]
[320738001,1711540239169,-186.1371261,0.00054791,4]
[320738002,1711540239179,-2068.14570066,0.00054792,4]
[320738003,1711540239190,-1053.4426883,0.00054793,30]
[320738004,1711540239200,-336.10722834,0.00054793,90]
[320738005,1711540239211,-3482.17266567,0.00054793,7]
[320738006,1711540239233,-13502.17459027,0.00054793,7]
[320738007,1711540239248,-6759.753,0.00054793,7]
[320738008,1711540239263,-1814.98792548,0.00054793,7]
[320738009,1711540239276,-999.3301068,0.00054793,7]
[320738010,1711540239289,-279.39887565,0.00054793,7]
[320738011,1711540239303,-3023.2088305,0.00054793,7]
[320738016,1711540240413,-263.0909659,0.00054793,7]
[320738017,1711540240425,-658.37640835,0.00054793,7]
[320738018,1711540240436,-538.37262856,0.00054793,7]
[320738019,1711540240448,-1753.80578364,0.00054793,7]
[320738020,1711540240459,-2758.11352494,0.00054793,7]
[320738021,1711540240579,-326.84988855,0.00054793,7]
[320738042,1711540243309,-5000.0,0.00054694,3]
[320738044,1711540243319,-21.95744226,0.00054793,7]
[320738046,1711540243331,-13149.68050675,0.00054793,7]
[320738048,1711540243340,-155.0,0.00054793,4]
[320738049,1711540243349,-12753.85806647,0.00054793,4]
[320738051,1711540243358,-458.40314934,0.00054794,120]
[320738053,1711540243368,-500.0,0.00054794,120]
[320738055,1711540243377,-500.0,0.00054794,120]
[320738056,1711540243386,-153.09226554,0.00054794,120]
[320738058,1711540243398,-500.0,0.00054794,120]
[320738060,1711540243410,-500.0,0.00054794,120]
[320738062,1711540243419,-500.0,0.00054794,120]
[320738064,1711540243428,-582.6,0.00054794,120]
[320738066,1711540243437,-500.0,0.00054794,120]
[320738067,1711540243447,-535.09938248,0.00054794,120]
[320738069,1711540243458,-500.0,0.00054794,120]
[320738071,1711540243467,-525.97630971,0.00054794,120]
[320738073,1711540243476,-505.17111938,0.00054794,120]
[320738075,1711540243485,-500.0,0.00054794,120]
[320738076,1711540243496,-500.0,0.00054794,120]
[320738078,1711540243506,-649.67493149,0.00054794,120]
[320738080,1711540243516,-520.71743963,0.00054794,120]
[320738082,1711540243526,-316.53615718,0.00054794,120]
[320738085,1711540243555,-664.0752303,0.00054792,4]
[320738086,1711540243566,-215.64007001,0.00054794,120]
[320738088,1711540243575,-500.0,0.00054794,120]
[320738090,1711540243584,-258.55294162,0.00054794,120]
[320738091,1711540243596,-241.44705838,0.00054794,120]
[320738092,1711540243605,-242.77046018,0.00054794,120]
[320738093,1711540243617,-428.93953982,0.00054794,120]
[320738094,1711540243627,-500.0,0.00054794,120]
[320738095,1711540243638,-500.0,0.00054794,120]
[320738096,1711540243648,-500.0,0.00054794,120]
[320738097,1711540243659,-500.0,0.00054794,120]
[320738098,1711540243668,-500.0,0.00054794,120]
[320738099,1711540243682,-353.80482907,0.00054794,120]
[320738100,1711540243694,-146.19517093,0.00054794,120]
[320738101,1711540243704,-505.93,0.00054794,120]
[320738102,1711540243714,-504.08099031,0.00054794,120]
[320738103,1711540243725,-500.0,0.00054794,120]
[320738104,1711540243736,-500.0,0.00054794,120]
[320738105,1711540243746,-500.0,0.00054794,120]
[320738106,1711540243755,-367.53483772,0.00054794,120]
[320738107,1711540243778,-132.46516228,0.00054794,120]
[320738108,1711540243788,-500.0,0.00054794,120]
[320738109,1711540243797,-500.0,0.00054794,120]
[320738110,1711540243806,-500.0,0.00054794,120]
[320738111,1711540243815,-939.91,0.00054794,120]
[320738112,1711540243824,-500.0,0.00054794,120]
[320738113,1711540243834,-1136.86,0.00054794,120]
[320738115,1711540243842,-500.0,0.00054794,120]
[320738117,1711540243851,-500.0,0.00054794,120]
[320738118,1711540243861,-500.0,0.00054794,120]
[320738119,1711540243870,-500.0,0.00054794,120]
[320738120,1711540243880,-500.0,0.00054794,120]
[320738121,1711540243890,-529.55,0.00054794,120]
[320738122,1711540243899,-943.12,0.00054794,120]
[320738123,1711540243910,-500.0,0.00054794,120]
[320738124,1711540243919,-500.0,0.00054794,120]
[320738125,1711540243927,-613.22045463,0.00054794,120]
[320738126,1711540243938,-500.0,0.00054794,120]
[320738127,1711540243948,-500.0,0.00054794,120]
[320738128,1711540243959,-500.0,0.00054794,30]
[320738129,1711540243970,-500.0,0.00054794,120]
[320738130,1711540243979,-149.65438309,0.00054794,120]
[320738147,1711540270116,505.09063828,0.00018,2]
[320738148,1711540270149,1135000.0,0.00018,2]
[320738149,1711540270171,310.0,0.00018,2]
[320738150,1711540270199,65008.37975582,0.00018,2]
[320738151,1711540272471,4156.26278162,0.000154,2]
[320738152,1711540293670,2175.23563188,0.0001,2]
[320738153,1711540295791,150.0,0.00041412,30]
[320738154,1711540296245,250.0,0.00041412,30]
[320738155,1711540298305,4302.91906703,0.00011,2]
[320738156,1711540317316,1649.9647029,6.94e-05,2]
[320738181,1711540472447,1853.83220971,0.00015,2]
[320738183,1711540595739,150.0,0.00041431,30]
[320738184,1711540596168,250.0,0.00041431,30]
[320738185,1711540894915,150.0,0.00041082,30]
[320738186,1711540895361,250.0,0.00041082,30]
[320738187,1711541094056,-250.0,0.00016868,2]
[320738188,1711541094079,-600.0,0.00016882,2]
[320738189,1711541094101,-200.0,0.00016911,2]
[320738190,1711541094122,-250.0,0.00017066,2]
[320738191,1711541094144,-150.0,0.00017144,2]
[320738192,1711541094165,-550.0,0.00017145,2]
[320738193,1711541095187,-2000.0,0.00017145,2]
[320738194,1711541095423,-2000.0,0.00017145,2]
[320738195,1711541095768,-2000.0,0.00017145,2]
[320738196,1711541096119,-2000.0,0.00017145,2]
[320738197,1711541096403,-2000.0,0.00017145,2]
[320738200,1711541096740,-2000.0,0.00017145,2]
[320738201,1711541097093,-2000.0,0.00017145,2]
[320738202,1711541097449,-2000.0,0.00017145,2]
[320738203,1711541097828,-2000.0,0.00017145,2]
[320738204,1711541098403,-2000.0,0.00017145,2]
[320738205,1711541098731,-2000.0,0.00017145,2]
[320738206,1711541099402,-1350.0,0.00017145,2]
[320738207,1711541099430,-240.0,0.00017403,2]
[320738208,1711541099455,-200.0,0.00017435,2]
[320738209,1711541099482,-150.0,0.00017613,2]
[320738210,1711541099508,-60.0,0.00017715,2]
[320738211,1711541099706,-184.71,0.00017715,2]
[320738212,1711541099730,-254.5727,0.00017798,2]
[320738213,1711541099754,-159.76514997,0.000178,2]
[320738214,1711541099778,-1400.95215003,0.000178,2]
[320738215,1711541100198,-2000.0,0.000178,2]
[320738216,1711541100788,-2000.0,0.000178,2]
[320738217,1711541101518,-2000.0,0.000178,2]
[320738218,1711541102139,-2000.0,0.000178,2]
[320738219,1711541102228,-2000.0,0.000178,2]
[320738220,1711541102755,-2000.0,0.000178,2]
[320738221,1711541103231,-2000.0,0.000178,2]
[320738222,1711541103803,-2000.0,0.000178,2]
[320738223,1711541104075,-2000.0,0.000178,2]
[320738224,1711541104468,150.5,0.0001989,7]
[320738225,1711541104620,-2000.0,0.000178,2]
[320738226,1711541105210,231.68,0.0001988,7]
[320738227,1711541105257,-2000.0,0.000178,2]
[320738228,1711541105715,-2000.0,0.000178,2]
[320738229,1711541106253,-2000.0,0.000178,2]
[320738230,1711541106811,-2000.0,0.000178,2]
[320738231,1711541107381,-2000.0,0.000178,2]
[320738232,1711541107444,-2000.0,0.000178,2]
[320738233,1711541107787,-2000.0,0.000178,2]
[320738234,1711541108269,-2000.0,0.000178,2]
[320738235,1711541108428,-2000.0,0.000178,2]
[320738237,1711541109436,-403.92535705,0.00017799,2]